bitfinex/quotes_BTCUSD_20250902
["timestamp","ask_amount","ask_price","bid_price","bid_amount"]
[1756837273028,0.18466847,110700.0,110690.0,0.11888481]
[1756837273245,0.18672847,110700.0,110690.0,0.11580481]
[1756837273852,0.004,110700.0,110690.0,0.88762084]
[1756837274063,0.004,110700.0,110690.0,1.22536229]
[1756837275474,0.004,110700.0,110690.0,1.42440229]
[1756837275692,0.004,110700.0,110690.0,1.26768229]
[1756837276101,0.004,110700.0,110690.0,0.9952896]
[1756837276310,0.004,110700.0,110690.0,1.42440229]
[1756837276667,0.004,110700.0,110690.0,1.42436229]
[1756837277674,0.00606,110700.0,110690.0,1.45151342]
[1756837277886,0.004,110700.0,110690.0,1.85151342]
[1756837278595,0.18672847,110700.0,110690.0,1.85155342]
[1756837278952,0.00606,110700.0,110690.0,1.85155342]
[1756837279152,0.004,110700.0,110690.0,1.45155342]
[1756837279887,0.18672847,110700.0,110690.0,1.45155342]
[1756837280105,0.18672847,110700.0,110690.0,1.44847342]
[1756837280464,0.00606,110700.0,110690.0,1.44847342]
[1756837280677,0.18974847,110700.0,110690.0,0.65910712]
[1756837280890,0.18974847,110700.0,110690.0,0.96932078]
[1756837281327,0.18974847,110700.0,110690.0,0.9902596]
[1756837281536,0.18672847,110700.0,110690.0,0.9922096]
[1756837281912,0.18672847,110700.0,110690.0,0.81152481]
[1756837283176,0.004,110700.0,110690.0,0.9922096]
[1756837283416,0.004,110700.0,110690.0,1.42436229]
[1756837283637,0.004,110700.0,110690.0,1.22532229]
[1756837284550,0.18672847,110700.0,110690.0,0.7960096]
[1756837284773,0.004,110700.0,110690.0,1.25223529]
[1756837287464,0.004,110700.0,110690.0,1.27480529]
[1756837287665,0.004,110700.0,110690.0,1.33968581]
[1756837287855,0.003,110700.0,110690.0,1.33968581]
[1756837288052,0.00014119,110710.0,110700.0,0.20160729]
[1756837288242,0.00014119,110710.0,110700.0,0.88215597]
[1756837288447,0.00014119,110710.0,110700.0,0.90221597]
[1756837288877,0.00014119,110710.0,110700.0,0.31666328]
[1756837289081,0.00220119,110710.0,110700.0,0.90217597]
[1756837289295,0.00014119,110710.0,110700.0,0.90217597]
[1756837289509,0.00114119,110710.0,110700.0,0.90417597]
[1756837289710,0.00114119,110710.0,110700.0,1.30217597]
[1756837289925,0.00014119,110710.0,110700.0,1.30217597]
[1756837290339,0.00014119,110710.0,110700.0,1.14573597]
[1756837290540,0.00220119,110710.0,110700.0,1.29909597]
[1756837290766,0.18587334,110710.0,110700.0,1.14070597]
[1756837290978,0.00220119,110710.0,110700.0,1.30013597]
[1756837291192,0.00320119,110710.0,110700.0,1.30521597]
[1756837291451,0.00114119,110710.0,110700.0,1.30521597]
[1756837291889,0.00320119,110710.0,110700.0,1.30213597]
[1756837292297,0.00114119,110710.0,110700.0,1.30521597]
[1756837294770,0.00114119,110710.0,110700.0,1.37009649]
[1756837295666,0.00114119,110710.0,110700.0,0.7845438]
[1756837295854,0.00114119,110710.0,110700.0,1.37049649]
[1756837296063,0.00114119,110710.0,110700.0,1.30561597]
[1756837297475,0.00114119,110710.0,110700.0,1.14873597]
[1756837297682,0.00114119,110710.0,110700.0,1.33268314]
[1756837297889,0.00320119,110710.0,110700.0,1.33268314]
[1756837298085,0.00114119,110710.0,110700.0,1.33268314]
[1756837298732,0.00114119,110710.0,110700.0,1.17588314]
[1756837298997,0.00114119,110710.0,110700.0,1.33264314]
[1756837299363,0.00114119,110710.0,110700.0,1.39752366]
[1756837300726,0.00114119,110710.0,110700.0,1.24076366]
[1756837300901,0.00318119,110710.0,110700.0,1.39448366]
[1756837301116,0.00114119,110710.0,110700.0,1.39768366]
[1756837303249,0.00114119,110710.0,110700.0,0.96861097]
[1756837303583,0.00114119,110710.0,110700.0,1.39768366]
[1756837304859,0.00318119,110710.0,110700.0,1.22277366]
[1756837305068,0.00318119,110710.0,110700.0,1.37422366]
[1756837305275,0.00114119,110710.0,110700.0,1.37954366]
[1756837305494,0.00114119,110710.0,110700.0,1.22294366]
[1756837305675,0.00318119,110710.0,110700.0,1.37634366]
[1756837305871,0.00318119,110710.0,110700.0,1.21974366]
[1756837306077,0.00318119,110710.0,110700.0,1.37422366]
[1756837306287,0.00637119,110710.0,110700.0,0.18694368]
[1756837306505,0.18702334,110710.0,110700.0,0.30273163]
[1756837306735,0.18702334,110710.0,110700.0,0.12206316]
[1756837306951,0.18702334,110710.0,110700.0,0.25147599]
[1756837307155,0.18702334,110710.0,110700.0,0.27141481]
[1756837307368,0.18702334,110710.0,110700.0,0.45208328]
[1756837307579,0.18702334,110710.0,110700.0,0.88115597]
[1756837307792,0.18383334,110710.0,110700.0,0.88327597]
[1756837307989,0.18283334,110710.0,110700.0,0.88127597]
[1756837308197,0.18602334,110710.0,110700.0,0.87915597]
[1756837308330,0.18283334,110710.0,110700.0,0.87915597]
[1756837308541,0.18483334,110710.0,110700.0,0.88015597]
[1756837308757,0.18802334,110710.0,110700.0,0.88015597]
[1756837310684,0.18802334,110710.0,110700.0,0.27041481]
[1756837311112,0.18802334,110710.0,110700.0,0.45108328]
[1756837311738,0.18802334,110710.0,110700.0,0.27041481]
[1756837312302,0.18802334,110710.0,110700.0,0.45108328]
[1756837312710,0.18802334,110710.0,110700.0,0.47823564]
[1756837314572,0.00214119,110710.0,110700.0,0.91262833]
[1756837314782,0.00214119,110710.0,110700.0,1.25262833]
[1756837317088,0.00214119,110710.0,110700.0,0.66699564]
[1756837317247,0.00418119,110710.0,110700.0,1.24930833]
[1756837317456,0.18802334,110710.0,110700.0,0.63744717]
[1756837317664,0.18802334,110710.0,110700.0,0.29744717]
[1756837318481,0.18802334,110710.0,110700.0,0.12006835]
[1756837319013,0.18802334,110710.0,110700.0,0.27886835]
[1756837320733,0.18802334,110710.0,110700.0,0.27874835]
[1756837321752,0.18802334,110710.0,110700.0,0.12006835]
[1756837322007,0.18802334,110710.0,110700.0,0.27874835]
[1756837323611,0.18483334,110710.0,110700.0,0.30180717]
[1756837323838,0.18483334,110710.0,110700.0,0.73087986]
[1756837324254,0.00214119,110710.0,110700.0,0.91474833]
[1756837324866,0.18279334,110710.0,110700.0,0.91474833]
[1756837326126,0.18483334,110710.0,110700.0,0.36308717]
[1756837326348,0.18279334,110710.0,110700.0,0.54907564]
[1756837328190,0.18279334,110710.0,110700.0,0.97814833]
[1756837328613,0.00214119,110710.0,110700.0,0.97814833]
[1756837328813,0.18279334,110710.0,110700.0,0.97814833]
[1756837329421,0.18484334,110710.0,110700.0,0.97494833]
[1756837329657,0.18484334,110710.0,110700.0,0.97807833]
[1756837329863,0.00214119,110710.0,110700.0,0.97807833]
[1756837330696,0.00214119,110710.0,110700.0,1.31807833]
[1756837331543,0.00214119,110710.0,110700.0,1.38295885]
[1756837331771,0.00214119,110710.0,110700.0,1.31807833]
[1756837331927,0.00214119,110710.0,110700.0,1.31783833]
[1756837334158,0.00214119,110710.0,110700.0,1.77078102]
[1756837334384,0.00214119,110710.0,110700.0,1.85161161]
[1756837334513,0.00214119,110710.0,110700.0,2.25149161]
[1756837334942,0.00014119,110710.0,110700.0,2.25049161]
[1756837335143,0.00014119,110710.0,110700.0,2.09245161]
[1756837335369,0.00014119,110710.0,110700.0,2.25049161]
[1756837335566,0.00014119,110710.0,110700.0,1.9524882]
[1756837335801,0.00014119,110710.0,110700.0,2.1104882]
[1756837336254,0.00014119,110710.0,110700.0,2.1124882]
[1756837336457,0.00114119,110710.0,110700.0,2.1154882]
[1756837336851,0.00014119,110710.0,110700.0,2.1124882]
[1756837337501,0.00114119,110710.0,110700.0,2.1184882]
[1756837337943,0.00114119,110710.0,110700.0,1.8866182]
[1756837338570,0.00114119,110710.0,110700.0,2.0444582]
[1756837339215,0.00114119,110710.0,110700.0,2.0683282]
[1756837340815,0.00114119,110710.0,110700.0,1.9104882]
[1756837341038,0.00114119,110710.0,110700.0,2.0443382]
[1756837341298,0.00114119,110710.0,110700.0,2.1182082]
[1756837341916,1e-08,110710.0,110700.0,2.05548761]
[1756837342328,21.35812712,110730.0,110720.0,0.20157465]
[1756837342546,21.35812712,110730.0,110720.0,1.18526079]
[1756837342759,21.35812712,110730.0,110720.0,1.52839079]
[1756837342973,21.35812712,110730.0,110720.0,1.95552988]
[1756837343181,21.35812712,110730.0,110720.0,2.67271185]
[1756837343386,21.35812712,110730.0,110720.0,2.60789367]
[1756837343679,20.94463318,110730.0,110720.0,2.98931451]
[1756837343897,20.70190793,110730.0,110720.0,3.00742451]
[1756837344109,20.70190793,110730.0,110720.0,3.00738451]
[1756837344314,20.69286524,110730.0,110720.0,3.00738451]
[1756837344567,20.69286524,110730.0,110720.0,1.51534057]
[1756837344729,20.68382255,110730.0,110720.0,3.00638451]
[1756837344935,20.67477986,110730.0,110720.0,2.84970451]
[1756837345118,20.67477986,110730.0,110720.0,2.2754117]
[1756837345513,20.66573717,110730.0,110720.0,2.2744117]
[1756837345722,20.66473717,110730.0,110720.0,2.3127464]
[1756837345925,20.65669448,110730.0,110720.0,2.3207464]
[1756837346184,20.65569448,110730.0,110720.0,2.82624837]
[1756837346388,20.64665179,110730.0,110720.0,2.98396837]
[1756837346546,20.64765179,110730.0,110720.0,2.98992837]
[1756837346747,20.6386091,110730.0,110720.0,2.98992837]
[1756837346967,20.62956641,110730.0,110720.0,2.98992837]
[1756837347342,20.62052372,110730.0,110720.0,2.98992837]
[1756837347550,20.62052372,110730.0,110720.0,2.96605837]
[1756837347758,20.61148103,110730.0,110720.0,2.96605837]
[1756837348194,20.60243834,110730.0,110720.0,2.96605837]
[1756837348616,20.59339565,110730.0,110720.0,2.96605837]
[1756837349123,20.58435296,110730.0,110720.0,2.96605837]
[1756837349544,20.15534857,110730.0,110720.0,2.96605837]
[1756837349969,19.79782954,110730.0,110720.0,2.98992837]
[1756837350156,19.55904548,110730.0,110720.0,2.98992837]
[1756837350369,19.27923359,110730.0,110720.0,2.98992837]
[1756837350580,19.24758919,110730.0,110720.0,2.83224837]
[1756837350787,18.9871108,110730.0,110720.0,2.98964837]
[1756837351003,18.51666223,110730.0,110720.0,2.98964837]
[1756837351225,18.22449542,110730.0,110720.0,2.98964837]
[1756837351443,17.82389844,110730.0,110720.0,2.87746837]
[1756837351685,17.82389844,110730.0,110720.0,2.84703921]
[1756837351927,17.58926526,110730.0,110720.0,3.40447921]
[1756837352200,17.58926526,110730.0,110720.0,3.18224837]
[1756837352412,17.58022401,110730.0,110720.0,3.31581837]
[1756837352617,17.15892215,110730.0,110720.0,3.31581837]
[1756837353044,17.1498809,110730.0,110720.0,3.31581837]
[1756837353480,16.72823047,110730.0,110720.0,3.31581837]
[1756837353692,16.38481735,110730.0,110720.0,3.31581837]
[1756837353905,16.3757761,110730.0,110720.0,3.15837837]
[1756837354114,16.3757761,110730.0,110720.0,3.31645837]
[1756837354354,16.36673485,110730.0,110720.0,3.31645837]
[1756837354671,16.3576936,110730.0,110720.0,3.31645837]
[1756837355090,16.34865235,110730.0,110720.0,3.31645837]
[1756837355299,16.3396111,110730.0,110720.0,3.31645837]
[1756837355722,15.59204971,110730.0,110720.0,3.34032837]
[1756837356127,15.37480854,110730.0,110720.0,3.34032837]
[1756837356339,15.37480854,110730.0,110720.0,3.68988837]
[1756837356340,12.99003657,110730.0,110720.0,3.68988837]
[1756837356548,12.82071592,110730.0,110720.0,3.68988837]
[1756837356764,12.62738038,110730.0,110720.0,3.53180837]
[1756837356971,12.43687308,110730.0,110720.0,3.53180837]
[1756837357172,12.28044877,110730.0,110720.0,3.68972837]
[1756837357377,12.06810494,110730.0,110720.0,3.68972837]
[1756837357616,11.77249323,110730.0,110720.0,3.68572837]
[1756837357820,11.63362294,110730.0,110720.0,3.68572837]
[1756837357979,11.44590475,110730.0,110720.0,3.68672837]
[1756837358185,11.28148053,110730.0,110720.0,3.68672837]
[1756837358389,11.10891387,110730.0,110720.0,3.68668837]
[1756837358654,11.10891387,110730.0,110720.0,3.63230837]
[1756837358655,11.09539065,110730.0,110720.0,3.63230837]
[1756837358886,10.78709763,110730.0,110720.0,3.70733109]
[1756837359015,10.65569655,110730.0,110720.0,3.70933109]
[1756837359215,10.41023794,110730.0,110720.0,2.37496715]
[1756837359448,10.40119792,110730.0,110720.0,3.70933109]
[1756837359656,10.24915559,110730.0,110720.0,3.66799639]
[1756837360217,9.68623343,110730.0,110720.0,8.66799639]
[1756837360536,9.27324395,110730.0,110720.0,8.58697367]
[1756837360739,9.12676742,110730.0,110720.0,8.58697367]
[1756837360944,8.93110793,110730.0,110720.0,8.58697367]
[1756837361131,8.8401023,110730.0,110720.0,8.58697367]
[1756837361338,8.15482991,110730.0,110720.0,7.31718994]
[1756837361546,8.03212992,110730.0,110720.0,8.65155388]
[1756837361761,7.86764961,110730.0,110720.0,8.65155388]
[1756837361967,7.74415582,110730.0,110720.0,8.65155388]
[1756837362180,7.74415582,110730.0,110720.0,8.35368506]
[1756837362384,7.74415582,110730.0,110720.0,7.99468785]
[1756837362590,7.74415582,110730.0,110720.0,8.17346667]
[1756837362752,7.74424078,110730.0,110720.0,8.17346667]
[1756837362961,7.73424078,110730.0,110720.0,7.77246667]
[1756837363160,7.73424078,110730.0,110720.0,8.12246667]
[1756837363366,7.70824078,110730.0,110720.0,8.17046667]
[1756837363586,7.70924078,110730.0,110720.0,7.96762667]
[1756837364108,7.70924078,110730.0,110720.0,8.12542667]
[1756837364306,7.70924078,110730.0,110720.0,8.07538667]
[1756837364468,7.71024078,110730.0,110720.0,8.18638667]
[1756837364677,7.71024078,110730.0,110720.0,7.97862667]
[1756837364878,7.71220078,110730.0,110720.0,6.70232167]
[1756837365284,7.71024078,110730.0,110720.0,6.70544167]
[1756837365959,7.0099587,110730.0,110720.0,6.70544167]
[1756837366462,6.66617006,110730.0,110720.0,6.70544167]
[1756837366678,6.43273137,110730.0,110720.0,6.70544167]
[1756837366892,6.34061349,110730.0,110720.0,6.70544167]
[1756837367098,5.70745395,110730.0,110720.0,6.70544167]
[1756837367378,5.40957803,110730.0,110720.0,6.70544167]
[1756837367781,5.090161,110730.0,110720.0,6.70544167]
[1756837368419,4.64780349,110730.0,110720.0,6.80066167]
[1756837369184,4.23274929,110730.0,110720.0,6.80066167]
[1756837369751,3.82502738,110730.0,110720.0,6.80066167]
[1756837370528,3.82698738,110730.0,110720.0,6.70204167]
[1756837371066,3.82502738,110730.0,110720.0,6.70516167]
[1756837371441,3.82502738,110730.0,110720.0,6.70512167]
[1756837371617,3.80691738,110730.0,110720.0,6.70512167]
[1756837372396,3.80691738,110730.0,110720.0,6.54776167]
[1756837372604,3.80691738,110730.0,110720.0,6.65508167]
[1756837372818,3.80691738,110730.0,110720.0,6.70508167]
[1756837373411,3.80691738,110730.0,110720.0,6.65508167]
[1756837373642,3.80691738,110730.0,110720.0,6.90392167]
[1756837374264,2.86491148,110730.0,110720.0,6.99914167]
[1756837374448,2.86491148,110730.0,110720.0,7.06372188]
[1756837374830,2.86491148,110730.0,110720.0,7.06396188]
[1756837374996,2.86491148,110730.0,110720.0,6.99938167]
[1756837375396,2.86491148,110730.0,110720.0,7.06396188]
[1756837375978,2.3275806,110730.0,110720.0,6.99938167]
[1756837376156,2.21315296,110730.0,110720.0,7.01396188]
[1756837376396,2.21315296,110730.0,110720.0,7.06396188]
[1756837378750,1.68223439,110730.0,110720.0,7.06396188]
[1756837379363,1.28223439,110730.0,110720.0,7.06429455]
[1756837379591,0.65601658,110730.0,110720.0,6.99938167]
[1756837379798,0.41523445,110730.0,110720.0,7.19938167]
[1756837380014,0.0002,110740.0,110730.0,1.06385534]
[1756837380226,0.0002,110760.0,110750.0,1.20963572]
[1756837380437,0.00224497,110760.0,110750.0,6.87681769]
[1756837380645,0.00538497,110760.0,110750.0,7.27681769]
[1756837380870,0.00538497,110760.0,110750.0,3.51252733]
[1756837381080,0.00538497,110760.0,110750.0,2.77473233]
[1756837381292,0.00538497,110760.0,110750.0,2.49409533]
[1756837381507,0.00538497,110760.0,110750.0,2.71634903]
[1756837381714,0.00538497,110760.0,110750.0,2.12122503]
[1756837381924,0.00538497,110760.0,110750.0,2.37046102]
[1756837382147,0.00538497,110760.0,110750.0,2.37042102]
[1756837382419,0.00738497,110760.0,110750.0,2.21414102]
[1756837382634,0.03044497,110760.0,110750.0,0.91957633]
[1756837382848,0.03044497,110760.0,110750.0,0.67192263]
[1756837383276,0.03144497,110760.0,110750.0,1.01992263]
[1756837383485,0.03144497,110760.0,110750.0,2.02841532]
[1756837383707,0.03144497,110760.0,110750.0,1.84088142]
[1756837383916,0.03144497,110760.0,110750.0,1.70804342]
[1756837384573,0.03144497,110760.0,110750.0,1.04086145]
[1756837384787,0.03144497,110760.0,110750.0,1.70804342]
[1756837385219,0.03144497,110760.0,110750.0,2.06150132]
[1756837385438,0.03144497,110760.0,110750.0,2.04057432]
[1756837385638,0.03144497,110760.0,110750.0,1.04074145]
[1756837385996,0.03144497,110760.0,110750.0,0.88358145]
[1756837386211,0.03144497,110760.0,110750.0,0.60173263]
[1756837386805,0.03144497,110760.0,110750.0,1.00173263]
[1756837387012,0.03144497,110760.0,110750.0,1.6689146]
[1756837387155,0.03144497,110760.0,110750.0,1.68985342]
[1756837387993,0.00838497,110760.0,110750.0,1.87044032]
[1756837388420,0.00524497,110760.0,110750.0,1.92247032]
[1756837388619,0.00524497,110760.0,110750.0,2.30240232]
[1756837388949,0.00524497,110760.0,110750.0,2.36530602]
[1756837389159,0.00524497,110760.0,110750.0,2.36733602]
[1756837389992,0.00524497,110760.0,110750.0,2.35240232]
[1756837390240,0.0002,110770.0,110760.0,0.5205706]
[1756837390442,0.00338,110770.0,110760.0,2.99814279]
[1756837390646,0.00535,110770.0,110760.0,2.85889679]
[1756837390853,0.00535,110770.0,110760.0,3.17770138]
[1756837391060,0.00535,110770.0,110760.0,2.38055838]
[1756837391463,0.00217,110770.0,110760.0,2.38258838]
[1756837391672,0.00417,110770.0,110760.0,2.38358838]
[1756837391900,0.00517,110770.0,110760.0,2.39158838]
[1756837392599,0.0032,110770.0,110760.0,2.39462838]
[1756837393051,0.0032,110770.0,110760.0,2.55779121]
[1756837393941,0.00051856,110770.0,110760.0,2.44462838]
[1756837395192,0.00051856,110770.0,110760.0,1.77744641]
[1756837395415,0.00248856,110770.0,110760.0,2.28454838]
[1756837395623,0.00248856,110770.0,110760.0,2.62898911]
[1756837395832,0.00248856,110770.0,110760.0,2.47377911]
[1756837396044,0.00248856,110770.0,110760.0,2.62898911]
[1756837396254,0.00248856,110770.0,110760.0,2.82985911]
[1756837396870,0.00248856,110770.0,110760.0,2.67261911]
[1756837397089,0.00248856,110770.0,110760.0,2.82981911]
[1756837397295,0.00051856,110770.0,110760.0,2.83285911]
[1756837397501,0.00051856,110770.0,110760.0,3.03285911]
[1756837397967,0.00051856,110770.0,110760.0,3.05093911]
[1756837398180,0.0002,110780.0,110770.0,0.80957312]
[1756837398386,0.0002,110780.0,110770.0,6.48693546]
[1756837398563,0.0002,110780.0,110770.0,6.49200546]
[1756837398770,0.0002,110780.0,110770.0,6.89200546]
[1756837399396,0.0022,110780.0,110770.0,6.74176546]
[1756837399604,0.0022,110780.0,110770.0,6.89900546]
[1756837399819,0.0022,110780.0,110770.0,6.90262139]
[1756837400240,0.00035784,110780.0,110770.0,6.90262139]
[1756837400867,0.00035784,110780.0,110770.0,6.93082774]
[1756837401098,0.00035784,110780.0,110770.0,7.13582774]
[1756837401522,0.00035784,110780.0,110770.0,7.53582774]
[1756837401734,0.00035784,110780.0,110770.0,7.51774774]
[1756837401945,5.835e-05,110780.0,110770.0,7.51774774]
[1756837402771,5.835e-05,110780.0,110770.0,2.51774774]
[1756837403608,5.835e-05,110780.0,110770.0,2.56774774]
[1756837403830,5.835e-05,110780.0,110770.0,2.72940893]
[1756837404033,5.835e-05,110780.0,110770.0,2.57216893]
[1756837404240,5.835e-05,110780.0,110770.0,2.72928893]
[1756837404635,5.835e-05,110780.0,110770.0,2.57216893]
[1756837404841,5.835e-05,110780.0,110770.0,2.30108258]
[1756837405057,5.835e-05,110780.0,110770.0,2.14396258]
[1756837405336,5.835e-05,110780.0,110770.0,2.13954139]
[1756837405757,5.835e-05,110780.0,110770.0,1.98230139]
[1756837405960,5.835e-05,110780.0,110770.0,2.13982139]
[1756837407227,5.835e-05,110780.0,110770.0,2.08982139]
[1756837407498,5.835e-05,110780.0,110770.0,2.13982139]
[1756837408634,5.835e-05,110780.0,110770.0,2.13970139]
[1756837409102,5.835e-05,110780.0,110770.0,2.08970139]
[1756837409300,5.835e-05,110780.0,110770.0,2.22082139]
[1756837409440,5.835e-05,110780.0,110770.0,2.37826139]
[1756837409639,5.835e-05,110780.0,110770.0,2.22082139]
[1756837409861,0.00515952,110780.0,110770.0,1.47575139]
[1756837410043,0.00515952,110780.0,110770.0,1.56796649]
[1756837410252,0.0002,110820.0,110800.0,0.02093882]
[1756837410453,0.00067063,110820.0,110810.0,0.65287599]
[1756837410933,0.18234346,110820.0,110810.0,0.52263703]
[1756837411148,0.28400346,110820.0,110810.0,0.67995703]
[1756837411326,0.10453063,110820.0,110810.0,0.67995703]
[1756837411541,0.10353063,110820.0,110810.0,0.67995703]
[1756837411745,0.71502969,110820.0,110810.0,0.65275599]
[1756837411946,0.71320981,110820.0,110810.0,0.65875599]
[1756837412175,0.28500346,110820.0,110810.0,0.65875599]
[1756837412744,0.28500346,110820.0,110810.0,0.66275599]
[1756837413038,0.28500346,110820.0,110810.0,0.50551599]
[1756837413194,0.71320981,110820.0,110810.0,0.16551599]
[1756837413572,0.71320981,110820.0,110810.0,0.32271599]
[1756837414251,0.28500346,110820.0,110810.0,0.32271599]
[1756837414431,0.28500346,110820.0,110810.0,0.32267599]
[1756837414666,0.71320981,110820.0,110810.0,0.32267599]
[1756837415821,0.10453063,110820.0,110810.0,0.32267599]
[1756837416052,0.00287063,110820.0,110810.0,0.32267599]
[1756837417711,0.18334346,110820.0,110810.0,0.72267599]
[1756837417942,0.18334346,110820.0,110810.0,0.56551599]
[1756837418166,0.71320981,110820.0,110810.0,0.16551599]
[1756837418405,0.71320981,110820.0,110810.0,0.32255599]
[1756837418646,0.28500346,110820.0,110810.0,0.32255599]
[1756837418884,0.10453063,110820.0,110810.0,0.32255599]
[1756837419580,0.00287063,110820.0,110810.0,0.32255599]
[1756837419798,0.00287063,110820.0,110810.0,0.16551599]
[1756837420030,0.18334346,110820.0,110810.0,0.32422335]
[1756837420320,0.00287063,110820.0,110810.0,0.32259599]
[1756837420786,0.00287063,110820.0,110810.0,1.09593234]
[1756837421267,0.00287063,110820.0,110810.0,1.09080234]
[1756837421471,0.00287063,110820.0,110810.0,1.11792166]
[1756837422615,0.00287063,110820.0,110810.0,1.51792166]
[1756837423090,0.00287063,110820.0,110810.0,1.5877209]
[1756837423525,0.00287063,110820.0,110810.0,1.15438455]
[1756837423749,0.00287063,110820.0,110810.0,1.5877209]
[1756837423971,0.00287063,110820.0,110810.0,1.5825909]
[1756837424673,0.00287063,110820.0,110810.0,1.5846109]
[1756837424886,0.00287063,110820.0,110810.0,1.5877209]
[1756837425335,0.00287063,110820.0,110810.0,1.15438455]
[1756837425933,0.00287063,110820.0,110810.0,0.99730455]
[1756837426134,0.00287063,110820.0,110810.0,1.15410455]
[1756837427362,0.00287063,110820.0,110810.0,1.15430455]
[1756837427648,0.00287063,110820.0,110810.0,0.99730455]
[1756837427866,0.18334346,110820.0,110810.0,0.99730455]
[1756837428113,0.61154981,110820.0,110810.0,0.56551599]
[1756837428318,0.61154981,110820.0,110810.0,0.32239599]
[1756837430325,0.00287063,110820.0,110810.0,0.32239599]
[1756837430565,0.18334346,110820.0,110810.0,0.32239599]
[1756837430752,0.18616334,110820.0,110810.0,0.32239599]
[1756837430980,0.18334346,110820.0,110810.0,0.32239599]
[1756837431575,0.43107698,110820.0,110810.0,0.32239599]
[1756837431815,0.00287063,110820.0,110810.0,0.32239599]
[1756837432041,0.00167063,110820.0,110810.0,0.32752599]
[1756837432245,0.18214346,110820.0,110810.0,0.72752599]
[1756837432658,0.18214346,110820.0,110810.0,0.72275599]
[1756837432871,0.18334346,110820.0,110810.0,0.72275599]
[1756837433307,0.00167063,110820.0,110810.0,0.72477599]
[1756837433513,0.00167063,110820.0,110810.0,1.13255523]
[1756837434364,0.00167063,110820.0,110810.0,1.15967514]
[1756837436236,0.43107698,110820.0,110810.0,0.99730514]
[1756837436441,0.61154981,110820.0,110810.0,0.99730514]
[1756837436782,0.61154981,110820.0,110810.0,1.06251599]
[1756837437218,0.61154981,110820.0,110810.0,0.66251599]
[1756837438906,0.61154981,110820.0,110810.0,0.66247599]
[1756837440728,0.61154981,110820.0,110810.0,0.50551599]
[1756837441123,0.61154981,110820.0,110810.0,0.72235599]
[1756837441368,0.61154981,110820.0,110810.0,0.32235599]
[1756837441616,0.61154981,110820.0,110810.0,0.16551599]
[1756837441888,0.61154981,110820.0,110810.0,0.32231599]
[1756837442705,0.61154981,110820.0,110810.0,0.16551599]
[1756837442925,0.61154981,110820.0,110810.0,0.01]
[1756837442926,0.71866981,110820.0,110810.0,0.01]
[1756837443140,0.71866981,110820.0,110810.0,0.16676]
[1756837443605,0.71866981,110820.0,110810.0,0.16276]
[1756837444041,0.71866981,110820.0,110810.0,0.006]
[1756837444245,0.71766981,110820.0,110810.0,0.15676]
[1756837444653,0.71866981,110820.0,110810.0,0.15776]
[1756837446728,0.71866981,110820.0,110810.0,0.001]
[1756837446949,0.71866981,110820.0,110810.0,0.15772]
[1756837447206,0.71866981,110820.0,110810.0,0.001]
[1756837447419,0.71866981,110820.0,110810.0,0.15772]
[1756837449325,0.71866981,110820.0,110810.0,0.15768]
[1756837449898,0.61154981,110820.0,110810.0,0.15768]
[1756837451794,0.61154981,110820.0,110810.0,0.001]
[1756837451990,0.61154981,110820.0,110810.0,0.15768]
[1756837452402,1.03975616,110820.0,110810.0,0.001]
[1756837452605,0.18334346,110820.0,110810.0,0.15768]
[1756837452836,0.61154981,110820.0,110810.0,0.15768]
[1756837455295,0.18334346,110820.0,110810.0,0.15768]
[1756837455497,0.85004749,110820.0,110810.0,0.15768]
[1756837456399,0.18334346,110820.0,110810.0,0.15768]
[1756837456656,0.85004749,110820.0,110810.0,0.16274]
[1756837458636,0.85004749,110820.0,110810.0,0.15768]
[1756837458785,0.18214346,110820.0,110810.0,0.16274]
[1756837460559,0.85004749,110820.0,110810.0,0.16274]
[1756837460769,0.85004749,110820.0,110810.0,0.001]
[1756837461408,0.85004749,110820.0,110810.0,0.15768]
[1756837461856,0.85004749,110820.0,110810.0,0.001]
[1756837462078,0.85004749,110820.0,110810.0,0.15768]
[1756837462299,0.85004749,110820.0,110810.0,0.001]
[1756837462480,0.18334346,110820.0,110810.0,0.15768]
[1756837462740,0.85004749,110820.0,110810.0,0.15768]
[1756837463139,0.85004749,110820.0,110810.0,0.001]
[1756837463358,0.85004749,110820.0,110810.0,0.15768]
[1756837463598,0.85004749,110820.0,110810.0,0.001]
[1756837463827,0.87696195,110820.0,110810.0,0.001]
[1756837464701,0.85004749,110820.0,110810.0,0.001]
[1756837467963,0.94526749,110820.0,110810.0,0.001]
[1756837468182,0.85004749,110820.0,110810.0,0.001]
[1756837471519,0.84884749,110820.0,110810.0,0.00606]
[1756837471742,0.18214346,110820.0,110810.0,0.00606]
[1756837472170,0.18214346,110820.0,110810.0,0.09797599]
[1756837473840,0.84884749,110820.0,110810.0,0.09797599]
[1756837474721,0.18214346,110820.0,110810.0,0.09797599]
[1756837474939,0.84884749,110820.0,110810.0,0.09797599]
[1756837475811,0.18214346,110820.0,110810.0,0.09797599]
[1756837477610,0.84884749,110820.0,110810.0,0.24955599]
[1756837477815,0.84884749,110820.0,110810.0,0.25461599]
[1756837478022,0.18214346,110820.0,110810.0,0.25461599]
[1756837478233,0.84884749,110820.0,110810.0,0.25461599]
[1756837479529,0.59326242,110820.0,110810.0,0.25461599]
[1756837483559,0.59326242,110820.0,110810.0,0.09797599]
[1756837483752,0.59446242,110820.0,110810.0,0.09797599]
[1756837483997,0.59446242,110820.0,110810.0,0.24955599]
[1756837483998,1.00558138,110820.0,110810.0,0.24955599]
[1756837484209,0.59446242,110820.0,110810.0,0.25161599]
[1756837484417,0.59326242,110820.0,110810.0,0.25478599]
[1756837485260,0.59326242,110820.0,110810.0,0.09814599]
[1756837485474,0.59326242,110820.0,110810.0,0.25478599]
[1756837487136,0.59326242,110820.0,110810.0,0.25474599]
[1756837488521,0.18214346,110820.0,110810.0,0.25474599]
[1756837488727,0.59326242,110820.0,110810.0,0.25474599]
[1756837493614,0.59326242,110820.0,110810.0,0.25470599]
[1756837495232,0.59326242,110820.0,110810.0,0.09814599]
[1756837495454,0.59326242,110820.0,110810.0,0.15756]
[1756837495455,1.00558138,110820.0,110810.0,0.15756]
[1756837495663,1.83168655,110820.0,110810.0,1e-08]
[1756837495875,1.96665443,110820.0,110810.0,1e-08]
[1756837496469,2.05857042,110820.0,110810.0,1e-08]
[1756837496895,1.64745146,110820.0,110810.0,1e-08]
[1756837497102,2.05857042,110820.0,110810.0,1e-08]
[1756837497558,2.21513042,110820.0,110810.0,1e-08]
[1756837497782,2.31513042,110820.0,110810.0,1e-08]
[1756837497998,2.33455174,110820.0,110810.0,1e-08]
[1756837498862,2.33455174,110820.0,110790.0,0.11428]
[1756837498863,0.18050541,110800.0,110790.0,0.11428]
[1756837499079,1.00676372,110800.0,110790.0,0.11428]
[1756837499303,1.00676372,110800.0,110780.0,0.07354631]
[1756837499304,0.1805217,110790.0,110780.0,0.07354631]
[1756837499519,1.00678027,110790.0,110780.0,0.07354631]
[1756837499748,1.00395962,110790.0,110780.0,0.15656]